[Event "Open Cappelle-la-Grande"]
[Date "2026.02.21"]
[White "Jendrowiak, Maciej"]
[Black "Pranesh M"]
[WhiteElo "2179"]
[BlackElo "2627"]
[Round "1.1.1"]
[Result "0-1"]
[TimeControl "40/5400+30:1800+30"]

e4 {[%clk 1:30:55]} e5 {[%clk 1:30:55]} Nf3 {[%clk 1:31:13]} Nc6 {[%clk
1:31:20]} Bc4 {[%clk 1:31:25]} Nf6 {[%clk 1:31:44]} Ng5 {[%clk 1:31:00]} d5
{[%clk 1:31:53]} exd5 {[%clk 1:31:11]} Na5 {[%clk 1:32:09]} Bb5+ {[%clk
1:31:35]} c6 {[%clk 1:32:29]} dxc6 {[%clk 1:31:32]} bxc6 {[%clk 1:32:54]} Bd3
{[%clk 1:31:06]} Nd5 {[%clk 1:32:55]} h4 {[%clk 1:31:11]} Qc7 {[%clk 1:32:16]}
Nc3 {[%clk 1:29:56]} h6 {[%clk 1:32:16]} Nxd5 {[%clk 1:27:47]} cxd5 {[%clk
1:31:04]} Qh5 {[%clk 1:27:54]} Bc5 {[%clk 1:30:48]} b4 {[%clk 1:27:49]} Bxb4
{[%clk 1:31:02]} Nxf7 {[%clk 1:25:36]} O-O {[%clk 1:31:13]} Nxe5 {[%clk
1:24:54]} Bf5 {[%clk 1:31:08]} f4 {[%clk 1:18:23]} Bxd3 {[%clk 1:30:56]} Nxd3
{[%clk 1:17:57]} Rae8+ {[%clk 1:30:53]} Kd1 {[%clk 1:17:46]} Qc4 {[%clk
1:30:55]} Bb2 {[%clk 1:10:44]} Nc6 {[%clk 1:28:28]} Rc1 {[%clk 1:06:40]} Re4
{[%clk 1:15:59]} Re1 {[%clk 0:58:52]} Nd4 {[%clk 0:58:23]} Nxb4 {[%clk 0:45:41]}
Rf5 {[%clk 0:57:02]} Qg4 {[%clk 0:37:21]} Rxe1+ {[%clk 0:56:27]} Kxe1 {[%clk
0:37:46]} Rxf4 {[%clk 0:56:47]} d3 {[%clk 0:37:20]} Qxb4+ {[%clk 0:57:09]} c3
{[%clk 0:37:45]} Qe7+ {[%clk 0:57:25]}

[Variant "Standard"]
[Site "Europe Echecs"]

[Event "Open Cappelle-la-Grande"]
[Date "2026.02.21"]
[White "Pranav Anand"]
[Black "Pierrot, Yohann"]
[WhiteElo "2606"]
[BlackElo "2174"]
[Round "1.1.2"]
[Result "1-0"]
[TimeControl "40/5400+30:1800+30"]

e4 {[%clk 1:28:05]} c6 {[%clk 1:30:54]} d4 {[%clk 1:28:26]} d5 {[%clk 1:31:19]}
e5 {[%clk 1:28:52]} Bf5 {[%clk 1:31:45]} Nd2 {[%clk 1:29:17]} e6 {[%clk
1:31:47]} Nb3 {[%clk 1:29:43]} a6 {[%clk 1:31:26]} Be2 {[%clk 1:30:07]} c5
{[%clk 1:28:13]} dxc5 {[%clk 1:30:24]} Bxc5 {[%clk 1:27:11]} Nxc5 {[%clk
1:30:34]} Qa5+ {[%clk 1:27:36]} c3 {[%clk 1:31:00]} Qxc5 {[%clk 1:28:02]} Be3
{[%clk 1:26:06]} Qc7 {[%clk 1:28:07]} f4 {[%clk 1:26:29]} Ne7 {[%clk 1:25:57]}
Nf3 {[%clk 1:26:50]} Nd7 {[%clk 1:19:55]} O-O {[%clk 1:27:02]} O-O {[%clk
1:17:15]} Nd4 {[%clk 1:21:50]} Rfc8 {[%clk 0:59:27]} a4 {[%clk 1:15:18]} Be4
{[%clk 0:50:22]} a5 {[%clk 1:13:18]} Nc6 {[%clk 0:44:39]} Qa4 {[%clk 1:02:20]}
Nxd4 {[%clk 0:22:07]} Qxd4 {[%clk 1:01:15]} Nb8 {[%clk 0:12:47]} Qd2 {[%clk
0:59:56]} Nc6 {[%clk 0:12:09]} Bb6 {[%clk 1:00:11]} Qe7 {[%clk 0:11:49]} Qe3
{[%clk 0:57:23]} f5 {[%clk 0:11:05]} exf6 {[%clk 0:52:49]} gxf6 {[%clk 0:09:20]}
Bf3 {[%clk 0:49:23]} f5 {[%clk 0:07:25]} Rad1 {[%clk 0:47:02]} Qg7 {[%clk
0:04:02]} c4 {[%clk 0:38:12]} Ne7 {[%clk 0:03:29]} b3 {[%clk 0:38:15]} Qg6
{[%clk 0:02:23]} Bc5 {[%clk 0:37:18]} Re8 {[%clk 0:02:26]} Bxe7 {[%clk 0:29:11]}
Rxe7 {[%clk 0:02:54]} cxd5 {[%clk 0:29:33]} exd5 {[%clk 0:03:19]} Rxd5 {[%clk
0:29:50]} Rae8 {[%clk 0:02:53]} Rd2 {[%clk 0:30:00]} Qc6 {[%clk 0:02:46]} h3
{[%clk 0:22:59]} Bxf3 {[%clk 0:02:00]} Qxf3 {[%clk 0:23:27]} Re3 {[%clk
0:01:08]} Qxc6 {[%clk 0:20:15]} bxc6 {[%clk 0:01:38]} Rc2 {[%clk 0:20:27]} R8e6
{[%clk 0:00:36]} Rfc1 {[%clk 0:20:43]} Rxb3 {[%clk 0:00:39]} Rxc6 {[%clk
0:21:11]} Re2 {[%clk 0:00:31]} Rxa6 {[%clk 0:20:08]} Rbb2 {[%clk 0:00:32]} Rc8+
{[%clk 0:20:29]} Kf7 {[%clk 0:01:00]} Rc7+ {[%clk 0:20:49]}

[Variant "Standard"]
[Site "Europe Echecs"]

[Event "Open Cappelle-la-Grande"]
[Date "2026.02.21"]
[White "SAAD, Gabriel"]
[Black "Cheng, Bobby"]
[WhiteElo "2173"]
[BlackElo "2566"]
[Round "1.1.3"]
[Result "0-1"]
[TimeControl "40/5400+30:1800+30"]

e4 {[%clk 1:29:24]} c5 {[%clk 1:30:57]} Nf3 {[%clk 1:29:35]} d6 {[%clk 1:31:22]}
d4 {[%clk 1:29:57]} cxd4 {[%clk 1:31:48]} Nxd4 {[%clk 1:30:24]} Nf6 {[%clk
1:32:13]} Nc3 {[%clk 1:30:49]} a6 {[%clk 1:32:39]} Bg5 {[%clk 1:31:15]} Nbd7
{[%clk 1:31:53]} Qe2 {[%clk 1:31:02]} Qc7 {[%clk 1:30:37]} O-O-O {[%clk
1:30:47]} e6 {[%clk 1:30:10]} f4 {[%clk 1:29:49]} b5 {[%clk 1:30:07]} a3 {[%clk
1:16:54]} Be7 {[%clk 1:28:07]} g4 {[%clk 1:16:36]} h6 {[%clk 1:26:12]} Bxf6
{[%clk 1:15:05]} Bxf6 {[%clk 1:16:37]} Bg2 {[%clk 1:15:15]} Rb8 {[%clk 1:11:59]}
Rhe1 {[%clk 0:57:41]} O-O {[%clk 1:07:31]} e5 {[%clk 0:33:12]} dxe5 {[%clk
1:07:03]} Nc6 {[%clk 0:33:41]} exf4 {[%clk 0:52:50]} Nxb8 {[%clk 0:32:55]} Qxb8
{[%clk 0:53:14]} Ne4 {[%clk 0:32:20]} Be7 {[%clk 0:48:55]} h4 {[%clk 0:31:28]}
Bxh4 {[%clk 0:34:37]} Rh1 {[%clk 0:30:55]} Be7 {[%clk 0:34:12]} g5 {[%clk
0:29:35]} Qe5 {[%clk 0:34:06]} gxh6 {[%clk 0:21:28]} g6 {[%clk 0:34:12]} Bf3
{[%clk 0:21:57]} Nb6 {[%clk 0:31:00]} Rdg1 {[%clk 0:20:59]} Nc4 {[%clk 0:29:59]}
c3 {[%clk 0:21:10]} Kh7 {[%clk 0:28:14]} Qg2 {[%clk 0:15:32]} Rd8 {[%clk
0:18:20]} Ng5+ {[%clk 0:10:24]} Bxg5 {[%clk 0:18:24]} Qxg5 {[%clk 0:10:52]} Qe3+
{[%clk 0:12:52]} Kb1 {[%clk 0:11:21]} Rd2 {[%clk 0:12:41]}

[Variant "Standard"]
[Site "Europe Echecs"]

[Event "Open Cappelle-la-Grande"]
[Date "2026.02.21"]
[White "Can, Emre"]
[Black "Thouard, Axel"]
[WhiteElo "2541"]
[BlackElo "2171"]
[Round "1.1.4"]
[Result "1-0"]
[TimeControl "40/5400+30:1800+30"]

d4 {[%clk 1:30:43]} d5 {[%clk 1:30:39]} c4 {[%clk 1:31:03]} c6 {[%clk 1:31:03]}
Nf3 {[%clk 1:31:22]} Nf6 {[%clk 1:31:26]} Nc3 {[%clk 1:31:37]} e6 {[%clk
1:31:49]} Bg5 {[%clk 1:30:57]} dxc4 {[%clk 1:32:03]} a4 {[%clk 1:30:40]} Bb4
{[%clk 1:32:12]} e4 {[%clk 1:30:00]} Bxc3+ {[%clk 1:32:04]} bxc3 {[%clk
1:30:24]} Qa5 {[%clk 1:32:25]} e5 {[%clk 1:30:26]} Ne4 {[%clk 1:32:19]} Bd2
{[%clk 1:30:09]} Nxd2 {[%clk 1:30:10]} Qxd2 {[%clk 1:30:29]} b5 {[%clk 1:29:39]}
Be2 {[%clk 1:27:50]} O-O {[%clk 1:29:29]} O-O {[%clk 1:19:32]} Qc7 {[%clk
1:22:56]} Ng5 {[%clk 1:19:02]} Nd7 {[%clk 1:15:29]} Qc2 {[%clk 1:07:41]} g6
{[%clk 1:14:50]} Qe4 {[%clk 1:00:23]} h6 {[%clk 1:06:04]} Nxe6 {[%clk 0:51:59]}
fxe6 {[%clk 1:06:09]} Qxg6+ {[%clk 0:52:23]} Kh8 {[%clk 1:06:34]} Qxh6+ {[%clk
0:52:47]} Kg8 {[%clk 1:07:00]} Qg6+ {[%clk 0:52:06]} Kh8 {[%clk 1:07:18]} f4
{[%clk 0:51:33]} Nb6 {[%clk 1:02:03]} Qh6+ {[%clk 0:50:46]} Kg8 {[%clk 1:02:01]}
Rf3 {[%clk 0:51:10]} Rf7 {[%clk 0:58:02]} Rh3 {[%clk 0:50:11]} Rh7 {[%clk
0:58:08]} Qg6+ {[%clk 0:50:10]} Qg7 {[%clk 0:58:27]} Qe8+ {[%clk 0:50:30]} Qf8
{[%clk 0:58:54]} Qxf8+ {[%clk 0:50:48]} Kxf8 {[%clk 0:59:20]} Rxh7 {[%clk
0:51:12]} Nxa4 {[%clk 0:59:37]} Bf3 {[%clk 0:50:13]} a6 {[%clk 0:57:57]} Bxc6
{[%clk 0:50:00]} Rb8 {[%clk 0:58:24]} f5 {[%clk 0:47:12]} Kg8 {[%clk 0:51:29]}
Re7 {[%clk 0:41:17]} Nxc3 {[%clk 0:51:52]} Re8+ {[%clk 0:39:05]} Kg7 {[%clk
0:52:13]} f6+ {[%clk 0:38:40]} Kg6 {[%clk 0:50:26]} Rg8+ {[%clk 0:37:47]} Kf7
{[%clk 0:50:47]} Rh8 {[%clk 0:38:09]} Bb7 {[%clk 0:49:22]} Rxb8 {[%clk 0:37:41]}
Bxc6 {[%clk 0:49:45]} Rxa6 {[%clk 0:38:02]}

[Variant "Standard"]
[Site "Europe Echecs"]

[Event "Open Cappelle-la-Grande"]
[Date "2026.02.21"]
[White "Bocquenet-Drouode, Hugo"]
[Black "Velten, Paul"]
[WhiteElo "2169"]
[BlackElo "2522"]
[Round "1.1.5"]
[Result "1/2-1/2"]
[TimeControl "40/5400+30:1800+30"]

e4 {[%clk 1:30:58]} e6 {[%clk 1:30:30]} d4 {[%clk 1:31:22]} d5 {[%clk 1:30:45]}
e5 {[%clk 1:31:42]} Bd7 {[%clk 1:29:23]} Nf3 {[%clk 1:30:55]} a6 {[%clk
1:29:35]} Bd3 {[%clk 1:27:18]} Bb5 {[%clk 1:29:39]} O-O {[%clk 1:27:22]} Bxd3
{[%clk 1:29:46]} Qxd3 {[%clk 1:27:25]} c5 {[%clk 1:29:29]} dxc5 {[%clk 1:17:50]}
Bxc5 {[%clk 1:29:32]} c4 {[%clk 1:17:24]} Ne7 {[%clk 1:29:13]} Nc3 {[%clk
1:17:26]} Bb4 {[%clk 1:28:24]} Bg5 {[%clk 1:16:38]} Nbc6 {[%clk 1:27:05]} cxd5
{[%clk 1:10:01]} Bxc3 {[%clk 1:27:22]} Qxc3 {[%clk 1:09:06]} Qxd5 {[%clk
1:26:09]} Bxe7 {[%clk 1:05:04]} Nxe7 {[%clk 1:26:30]} Rfd1 {[%clk 1:04:09]} Qc6
{[%clk 1:26:21]} Qa3 {[%clk 1:04:04]} Nd5 {[%clk 1:23:24]} Rac1 {[%clk 1:02:34]}
Qd7 {[%clk 1:23:43]} Nd4 {[%clk 0:53:24]} Rd8 {[%clk 1:22:37]} Ne2 {[%clk
0:49:07]} Qe7 {[%clk 1:21:59]} Qa4+ {[%clk 0:48:13]} b5 {[%clk 1:20:01]} Qxa6
{[%clk 0:45:00]} O-O {[%clk 1:20:26]} Qxb5 {[%clk 0:42:00]} Rb8 {[%clk 1:20:27]}
Qd3 {[%clk 0:41:22]} Rxb2 {[%clk 1:20:46]} Nc3 {[%clk 0:37:31]} Qc5 {[%clk
1:17:55]} Ne4 {[%clk 0:34:50]} Qa7 {[%clk 1:16:52]} Qd4 {[%clk 0:24:30]} Qb8
{[%clk 1:15:44]} Nc3 {[%clk 0:18:19]} Rb4 {[%clk 1:14:49]} Qd2 {[%clk 0:18:01]}
Nf4 {[%clk 1:15:07]} Ne2 {[%clk 0:15:27]} Ng6 {[%clk 1:15:13]} Qd6 {[%clk
0:14:30]} Qb7 {[%clk 1:15:02]} Rc7 {[%clk 0:13:40]} Qb5 {[%clk 1:12:00]} Nd4
{[%clk 0:13:08]} Qa4 {[%clk 1:07:49]} Nc6 {[%clk 0:09:30]} Rb6 {[%clk 1:04:50]}
Rc1 {[%clk 0:08:05]} Kh8 {[%clk 1:04:35]} Rxf7 {[%clk 0:07:08]} Rg8 {[%clk
1:03:18]} Qc7 {[%clk 0:03:46]} Qa3 {[%clk 1:01:54]} Rd1 {[%clk 0:01:51]} Qa4
{[%clk 0:54:27]} Rc1 {[%clk 0:02:11]} Qa3 {[%clk 0:53:12]} Rf1 {[%clk 0:01:10]}
Rb5 {[%clk 0:42:49]} Qd6 {[%clk 0:00:44]} Qxa2 {[%clk 0:42:27]} Ne7 {[%clk
0:00:47]} Nxe7 {[%clk 0:41:06]} Rxe7 {[%clk 0:00:44]}

[Variant "Standard"]
[Site "Europe Echecs"]

[Event "Open Cappelle-la-Grande"]
[Date "2026.02.21"]
[White "Razafindratsima, Timothe"]
[Black "Goossens, Hanne"]
[WhiteElo "2504"]
[BlackElo "2164"]
[Round "1.1.6"]
[Result "1-0"]
[TimeControl "40/5400+30:1800+30"]

e4 {[%clk 1:30:57]} e5 {[%clk 1:28:09]} Nf3 {[%clk 1:31:15]} Nc6 {[%clk
1:28:23]} Bb5 {[%clk 1:30:51]} a6 {[%clk 1:28:41]} Ba4 {[%clk 1:31:17]} Nf6
{[%clk 1:28:49]} O-O {[%clk 1:31:36]} b5 {[%clk 1:28:56]} Bb3 {[%clk 1:32:00]}
Bc5 {[%clk 1:29:18]} c3 {[%clk 1:32:26]} d6 {[%clk 1:29:35]} a4 {[%clk 1:32:32]}
Rb8 {[%clk 1:29:25]} d4 {[%clk 1:32:57]} Bb6 {[%clk 1:29:19]} axb5 {[%clk
1:33:18]} axb5 {[%clk 1:29:30]} Be3 {[%clk 1:33:45]} O-O {[%clk 1:18:08]} Nbd2
{[%clk 1:32:56]} h6 {[%clk 1:17:35]} h3 {[%clk 1:28:43]} Re8 {[%clk 1:14:58]}
Re1 {[%clk 1:22:35]} exd4 {[%clk 1:10:39]} cxd4 {[%clk 1:22:24]} Nb4 {[%clk
1:07:47]} e5 {[%clk 1:00:10]} Nfd5 {[%clk 1:01:56]} Ne4 {[%clk 1:00:28]} Bb7
{[%clk 0:49:26]} Bd2 {[%clk 0:49:07]} Nd3 {[%clk 0:45:23]} Bg5 {[%clk 0:41:00]}
hxg5 {[%clk 0:27:14]} Qxd3 {[%clk 0:41:14]} Nf4 {[%clk 0:27:31]} Bxf7+ {[%clk
0:40:24]} Kf8 {[%clk 0:19:10]} Qb3 {[%clk 0:40:08]} d5 {[%clk 0:17:53]} Nexg5
{[%clk 0:39:03]} Bxd4 {[%clk 0:17:31]} e6 {[%clk 0:35:46]} Bb6 {[%clk 0:16:25]}
Qc2 {[%clk 0:33:01]} Ke7 {[%clk 0:13:41]} Qf5 {[%clk 0:30:50]}

[Variant "Standard"]
[Site "Europe Echecs"]

[Event "Open Cappelle-la-Grande"]
[Date "2026.02.21"]
[White "Hristov, Nikolay Valeriev"]
[Black "Degraeve, Jean-Marc"]
[WhiteElo "2163"]
[BlackElo "2503"]
[Round "1.1.7"]
[Result "0-1"]
[TimeControl "40/5400+30:1800+30"]

d4 {[%clk 1:30:52]} d6 {[%clk 1:30:45]} e4 {[%clk 1:29:01]} Nf6 {[%clk 1:31:06]}
Nc3 {[%clk 1:29:15]} e5 {[%clk 1:31:27]} Nf3 {[%clk 1:27:37]} Nbd7 {[%clk
1:30:09]} g4 {[%clk 1:25:22]} h6 {[%clk 1:28:37]} Rg1 {[%clk 1:18:40]} c6 {[%clk
1:28:05]} Be3 {[%clk 1:06:49]} b5 {[%clk 1:24:54]} Bd3 {[%clk 1:02:07]} a6
{[%clk 1:23:35]} h4 {[%clk 0:55:17]} g6 {[%clk 1:18:47]} g5 {[%clk 0:51:22]}
hxg5 {[%clk 1:18:53]} hxg5 {[%clk 0:51:20]} Nh5 {[%clk 1:19:12]} Ne2 {[%clk
0:49:11]} c5 {[%clk 1:15:34]} c3 {[%clk 0:48:27]} Bb7 {[%clk 1:05:53]} a4 {[%clk
0:43:59]} b4 {[%clk 1:02:53]} Qb3 {[%clk 0:41:37]} exd4 {[%clk 1:01:34]} cxd4
{[%clk 0:41:15]} Bg7 {[%clk 1:01:49]} Rd1 {[%clk 0:20:21]} Qe7 {[%clk 0:59:33]}
dxc5 {[%clk 0:18:20]} Nxc5 {[%clk 0:58:20]} Bxc5 {[%clk 0:17:53]} dxc5 {[%clk
0:58:49]} Rg4 {[%clk 0:07:09]} O-O-O {[%clk 0:57:43]} Bc4 {[%clk 0:04:31]} Rxd1+
{[%clk 0:57:10]} Qxd1 {[%clk 0:04:55]} f5 {[%clk 0:54:33]} gxf6 {[%clk 0:04:37]}
Nxf6 {[%clk 0:54:42]} Rxg6 {[%clk 0:02:10]} Bxe4 {[%clk 0:54:46]} Rxg7 {[%clk
0:01:57]} Qxg7 {[%clk 0:55:09]} Qd6 {[%clk 0:01:38]} Rh1+ {[%clk 0:43:58]} Nfg1
{[%clk 0:00:36]} Nd7 {[%clk 0:35:22]} Bxa6+ {[%clk 0:00:35]} Kd8 {[%clk
0:35:47]} Bb5 {[%clk 0:00:32]} Rh6 {[%clk 0:35:46]} Qxd7+ {[%clk 0:00:33]} Qxd7
{[%clk 0:36:09]} Bxd7 {[%clk 0:01:01]} Kxd7 {[%clk 0:36:34]} Kd2 {[%clk
0:00:41]} Rd6+ {[%clk 0:36:34]} Ke3 {[%clk 0:01:04]} Bc2 {[%clk 0:36:32]} Nf3
{[%clk 0:00:56]} Bxa4 {[%clk 0:35:03]} Ne5+ {[%clk 0:01:21]} Ke6 {[%clk
0:34:54]} Nd3 {[%clk 0:01:21]} Kd5 {[%clk 0:34:27]} f4 {[%clk 0:00:32]} Bb5
{[%clk 0:34:10]} b3 {[%clk 0:30:30]}

[Variant "Standard"]
[Site "Europe Echecs"]

[Event "Open Cappelle-la-Grande"]
[Date "2026.02.21"]
[White "Rohith Krishna S"]
[Black "Mueer, Sebastian"]
[WhiteElo "2484"]
[BlackElo "2162"]
[Round "1.1.8"]
[Result "1-0"]
[TimeControl "40/5400+30:1800+30"]

d4 {[%clk 1:27:41]} Nf6 {[%clk 1:23:29]} c4 {[%clk 1:27:42]} e6 {[%clk 1:23:53]}
Nf3 {[%clk 1:28:07]} d5 {[%clk 1:24:15]} Nc3 {[%clk 1:28:32]} dxc4 {[%clk
1:23:56]} e4 {[%clk 1:28:56]} b5 {[%clk 1:24:17]} e5 {[%clk 1:29:18]} Nd5 {[%clk
1:24:40]} Nxb5 {[%clk 1:29:38]} Nb6 {[%clk 1:25:04]} Be2 {[%clk 1:29:32]} Be7
{[%clk 1:25:25]} O-O {[%clk 1:29:12]} O-O {[%clk 1:25:21]} Be3 {[%clk 1:28:48]}
Nc6 {[%clk 1:22:22]} a3 {[%clk 1:29:09]} Bb7 {[%clk 1:17:59]} Qc2 {[%clk
1:29:06]} Na5 {[%clk 1:09:52]} Rad1 {[%clk 1:25:56]} Qd7 {[%clk 1:08:59]} Nc3
{[%clk 1:26:10]} Qc6 {[%clk 1:08:57]} Rfe1 {[%clk 1:25:34]} Rad8 {[%clk
1:04:03]} Bf1 {[%clk 1:23:38]} a6 {[%clk 0:56:18]} Ng5 {[%clk 1:08:57]} g6
{[%clk 0:51:01]} Nge4 {[%clk 1:08:30]} Nd5 {[%clk 0:49:33]} Bg5 {[%clk 1:04:26]}
Bxg5 {[%clk 0:42:11]} Nxg5 {[%clk 1:04:49]} Nb3 {[%clk 0:34:06]} Nce4 {[%clk
0:59:15]} h6 {[%clk 0:32:32]} Nf3 {[%clk 0:50:48]} Nb6 {[%clk 0:28:23]} h4
{[%clk 0:50:52]} Qa4 {[%clk 0:23:29]} h5 {[%clk 0:50:42]} Kg7 {[%clk 0:21:12]}
Qb1 {[%clk 0:47:48]} Nd5 {[%clk 0:17:40]} Qc2 {[%clk 0:26:08]} Nc5 {[%clk
0:12:19]} Qxa4 {[%clk 0:26:30]} Nxa4 {[%clk 0:12:45]} hxg6 {[%clk 0:26:57]} Nxb2
{[%clk 0:11:44]} Rb1 {[%clk 0:26:50]} c3 {[%clk 0:12:08]} gxf7 {[%clk 0:25:02]}
a5 {[%clk 0:07:49]} Rec1 {[%clk 0:18:44]} Rxf7 {[%clk 0:07:24]} Nxc3 {[%clk
0:19:08]} Nxc3 {[%clk 0:07:42]} Rxb2 {[%clk 0:18:54]} Bxf3 {[%clk 0:07:48]} Rxc3
{[%clk 0:19:20]} Be4 {[%clk 0:06:00]} f3 {[%clk 0:18:23]} Ba8 {[%clk 0:05:23]}
Rd2 {[%clk 0:16:18]} Bd5 {[%clk 0:03:49]} Rc5 {[%clk 0:15:47]} Ra8 {[%clk
0:04:17]} Bc4 {[%clk 0:12:07]} Bxc4 {[%clk 0:01:03]} Rxc4 {[%clk 0:12:32]} Kg6
{[%clk 0:00:47]} Rdc2 {[%clk 0:07:04]} Ra7 {[%clk 0:00:35]} Rc6 {[%clk 0:02:14]}
Kf5 {[%clk 0:30:02]} g4+ {[%clk 0:30:36]} Kg5 {[%clk 0:30:30]} Kg2 {[%clk
0:30:54]} h5 {[%clk 0:26:17]} gxh5 {[%clk 0:30:14]} Kf5 {[%clk 0:26:21]} Kg3
{[%clk 0:29:58]} Rb7 {[%clk 0:23:54]} Kh4 {[%clk 0:29:28]} Rd7 {[%clk 0:23:53]}
R2c4 {[%clk 0:29:27]} a4 {[%clk 0:20:29]} h6 {[%clk 0:28:50]} Rh7 {[%clk
0:17:41]} Kh5 {[%clk 0:27:11]} Rd7 {[%clk 0:11:50]} Rc1 {[%clk 0:25:40]} Rb3
{[%clk 0:10:28]} R6c3 {[%clk 0:21:56]} c5 {[%clk 0:06:57]} dxc5 {[%clk 0:17:56]}
Rd2 {[%clk 0:06:25]} Kh4 {[%clk 0:18:11]} Rh2+ {[%clk 0:04:08]} Kg3 {[%clk
0:18:23]} Rbb2 {[%clk 0:02:13]} Rg1 {[%clk 0:18:50]} Rxh6 {[%clk 0:02:30]} Rc4
{[%clk 0:19:17]} Rbh2 {[%clk 0:01:35]} Rg2 {[%clk 0:19:40]} Rxg2+ {[%clk
0:01:20]} Kxg2 {[%clk 0:20:01]} Kxe5 {[%clk 0:01:44]} c6 {[%clk 0:16:38]} Rh8
{[%clk 0:02:13]} Rxa4 {[%clk 0:15:36]} Kd6 {[%clk 0:02:35]} Rc4 {[%clk 0:15:37]}
Kc7 {[%clk 0:02:58]} Kf2 {[%clk 0:15:52]} Ra8 {[%clk 0:02:46]} a4 {[%clk
0:15:25]} Ra5 {[%clk 0:02:52]} Ke3 {[%clk 0:15:40]} Rh5 {[%clk 0:02:37]} Ke4
{[%clk 0:15:09]} Rf5 {[%clk 0:02:14]} Ke3 {[%clk 0:14:18]} Ra5 {[%clk 0:01:25]}
Kd3 {[%clk 0:13:05]} Rd5+ {[%clk 0:01:10]} Ke2 {[%clk 0:12:06]} Rh5 {[%clk
0:01:30]} Ke3 {[%clk 0:12:31]} Rd5 {[%clk 0:01:44]} Re4 {[%clk 0:07:44]} Rd6
{[%clk 0:02:02]} Kf4 {[%clk 0:08:10]} Rxc6 {[%clk 0:01:42]} Ke5 {[%clk 0:08:37]}
Kd7 {[%clk 0:01:25]} Kf6 {[%clk 0:08:37]} Rd6 {[%clk 0:00:44]} f4 {[%clk
0:08:26]} Ra6 {[%clk 0:01:03]} Kf7 {[%clk 0:07:03]} Rd6 {[%clk 0:01:07]} Rb4
{[%clk 0:05:03]} Rd5 {[%clk 0:00:47]} Rb7+ {[%clk 0:05:25]} Kc6 {[%clk 0:00:58]}
Kxe6 {[%clk 0:05:44]} Rd6+ {[%clk 0:00:39]} Ke5 {[%clk 0:06:07]} Rd5+ {[%clk
0:01:08]} Ke4 {[%clk 0:06:23]} Rd1 {[%clk 0:00:43]} Rb4 {[%clk 0:06:11]} Kc5
{[%clk 0:00:33]} Rb5+ {[%clk 0:06:37]} Kd6 {[%clk 0:01:02]} Kf5 {[%clk 0:06:43]}
Ra1 {[%clk 0:01:23]} a5 {[%clk 0:07:06]} Ke7 {[%clk 0:01:47]} Ke5 {[%clk
0:07:03]} Re1+ {[%clk 0:01:42]} Kd5 {[%clk 0:07:27]} Rf1 {[%clk 0:01:34]} Kc6
{[%clk 0:06:32]} Rxf4 {[%clk 0:01:24]} a6 {[%clk 0:06:59]} Rf6+ {[%clk 0:00:34]}
Kb7 {[%clk 0:07:15]} Kd8 {[%clk 0:00:35]} Rd5+ {[%clk 0:07:24]}

[Variant "Standard"]
[Site "Europe Echecs"]

[Event "Open Cappelle-la-Grande"]
[Date "2026.02.21"]
[White "Sason, Noam"]
[Black "Eugene, Floryan"]
[WhiteElo "2161"]
[BlackElo "2478"]
[Round "1.1.9"]
[Result "0-1"]
[TimeControl "40/5400+30:1800+30"]

Nf3 {[%clk 1:30:57]} d5 {[%clk 1:29:57]} g3 {[%clk 1:31:20]} Nf6 {[%clk
1:30:10]} Bg2 {[%clk 1:31:37]} e6 {[%clk 1:30:29]} O-O {[%clk 1:31:51]} Be7
{[%clk 1:30:53]} d3 {[%clk 1:31:55]} O-O {[%clk 1:29:49]} Nbd2 {[%clk 1:32:12]}
a5 {[%clk 1:30:08]} a4 {[%clk 1:30:55]} Nc6 {[%clk 1:30:08]} e4 {[%clk 1:27:52]}
dxe4 {[%clk 1:28:35]} dxe4 {[%clk 1:28:07]} Nd7 {[%clk 1:28:10]} Nc4 {[%clk
1:22:20]} b6 {[%clk 1:20:42]} Re1 {[%clk 1:15:35]} Ba6 {[%clk 1:18:05]} Na3
{[%clk 1:10:08]} Bb4 {[%clk 0:54:37]} Bg5 {[%clk 1:03:22]} f6 {[%clk 0:51:21]}
Bd2 {[%clk 1:03:08]} Nde5 {[%clk 0:51:13]} Nxe5 {[%clk 0:58:18]} Nxe5 {[%clk
0:51:10]} Nb1 {[%clk 0:48:34]} Qe7 {[%clk 0:41:41]} Bxb4 {[%clk 0:44:09]} axb4
{[%clk 0:41:39]} Nd2 {[%clk 0:42:29]} Rfd8 {[%clk 0:32:59]} Qc1 {[%clk 0:42:02]}
Bb7 {[%clk 0:33:11]} Nf3 {[%clk 0:36:19]} Nxf3+ {[%clk 0:31:45]} Bxf3 {[%clk
0:36:47]} Qc5 {[%clk 0:31:37]} Bg2 {[%clk 0:33:31]} e5 {[%clk 0:31:07]} Rd1
{[%clk 0:26:53]} Bc6 {[%clk 0:27:05]} b3 {[%clk 0:21:31]} Kf8 {[%clk 0:27:18]}
Rd3 {[%clk 0:19:23]} Rxd3 {[%clk 0:22:18]} cxd3 {[%clk 0:19:49]} Ra5 {[%clk
0:21:32]} Qd1 {[%clk 0:17:06]} Qd4 {[%clk 0:21:29]} Rc1 {[%clk 0:16:58]} Rc5
{[%clk 0:21:47]} Rxc5 {[%clk 0:16:48]} Qxc5 {[%clk 0:22:07]} Bh3 {[%clk
0:15:25]} Qd6 {[%clk 0:20:59]} Qg4 {[%clk 0:14:22]} Be8 {[%clk 0:21:13]} Qc8
{[%clk 0:10:37]} Ke7 {[%clk 0:21:09]} Bg4 {[%clk 0:09:58]} g6 {[%clk 0:20:53]}
Bd1 {[%clk 0:09:12]} h5 {[%clk 0:18:35]} Kg2 {[%clk 0:07:02]} Bd7 {[%clk
0:17:51]} Qg8 {[%clk 0:06:00]} Be8 {[%clk 0:18:13]} Qc4 {[%clk 0:05:22]} Bf7
{[%clk 0:17:44]} Qc1 {[%clk 0:04:07]} Kf8 {[%clk 0:16:46]} Qc2 {[%clk 0:03:54]}
c5 {[%clk 0:14:32]} Qb1 {[%clk 0:02:47]} Qd4 {[%clk 0:13:05]} Bc2 {[%clk
0:02:02]} Be6 {[%clk 0:06:10]} Qd1 {[%clk 0:28:19]} Kg7 {[%clk 0:35:54]} Qe2
{[%clk 0:27:39]} Qa1 {[%clk 0:35:05]} Qd1 {[%clk 0:25:56]} Qc3 {[%clk 0:35:15]}
Qb1 {[%clk 0:24:35]} Bg4 {[%clk 0:34:54]} Bd1 {[%clk 0:19:21]} Qe1 {[%clk
0:35:15]} Bc2 {[%clk 0:17:41]} Qxb1 {[%clk 0:35:34]} Bxb1 {[%clk 0:18:10]} Bd1
{[%clk 0:35:57]} Ba2 {[%clk 0:18:15]} Bc2 {[%clk 0:36:22]} f3 {[%clk 0:16:48]}
Bxd3 {[%clk 0:36:46]} Kf2 {[%clk 0:17:12]} Bc2 {[%clk 0:36:06]} Ke3 {[%clk
0:14:56]} c4 {[%clk 0:36:30]} bxc4 {[%clk 0:15:20]} b3 {[%clk 0:36:56]} Bb1
{[%clk 0:14:01]} Bxb1 {[%clk 0:37:17]} Kd2 {[%clk 0:14:28]} b2 {[%clk 0:37:36]}
Kc3 {[%clk 0:14:55]} Bd3 {[%clk 0:38:00]} Kxb2 {[%clk 0:15:18]} Bxc4 {[%clk
0:38:25]}

[Variant "Standard"]
[Site "Europe Echecs"]